[Event "FAI-ch Master 2022"]
[Site "Eidi"]
[Date "2022.04.13"]
[Round "5.4"]
[White "Nielsen, Torkil"]
[Black "Samuelsen, Carl Eli Nolsoe"]
[Result "0-1"]
[ECO "B06"]
[WhiteElo "2135"]
[BlackElo "2158"]
[Annotator "TA"]
[PlyCount "90"]
[EventDate "2022.04.10"]
[EventType "tourn"]
[EventCountry "FAI"]
[SourceTitle "playchess.com"]
[Source "ChessBase"]
[SourceQuality "1"]
[TimeControl "40/5400+30:1800+30"]

{[%evp 14,90,19,0,-1,-14,-2,-13,-6,-10,0,-14,10,-11,13,0,54,20,28,31,34,19,41,39,40,27,22,13,14,-16,66,61,110,59,137,112,105,117,122,43,42,42,42,45,37,-347,-322,-538,-533,-525,-514,-641,-494,-472,-483,-419,-256,-252,-137,-394,-377,-751,-737,-12797,-12799,-29988,-29989,-29989,-29990,-29990,-29991,-29993,-29994,-29996,-29997,-29997,-29998,-29998,-29990]} 1. e4 {[%emt 0:00:05]} c5 {[%emt 0:00:11]} 2. c3 {[%emt 0:00:29]} d5 {[%emt 0:00:19]} 3. exd5 {[%emt 0:00:17]} Qxd5 {[%emt 0:00:07]} 4. d4 {[%emt 0:00:19]} g6 {[%emt 0:00:58]} 5. Nf3 {[%emt 0:00:45]} Bg7 {[%emt 0:00:53]} 6. Be3 {[%emt 0:05:33]} cxd4 {[%emt 0:00:32]} 7. cxd4 {[%emt 0:00:34]} Qa5+ {[%emt 0:00:32]} 8. Nc3 {[%emt 0:02:11]} Nh6 {[%emt 0:01:57][%cal Bg8h6,Bh6f5,Bf5d6][%mdl 32] B06: Modern Defence.} 9. Qb3 {[%emt 0:12:18] [#] Threatens to win with Bb5+.} O-O {[%emt 0:05:08]} 10. Bc4 {[%emt 0:04:28]} Nf5 {[%emt 0:09:04] The position is equal.} 11. O-O {[%emt 0:02:29]} Nc6 {[%emt 0:06:39][%cal Rf5d4]} 12. Rad1 {[%emt 0:08:38]} Nd6 {[%emt 0:08:50]} 13. Be2 {[%emt 0:03:59] [#]} Bf5 $146 {[%emt 0:03:36]} ({Predecessor:} 13... Qb4 14. Qc2 Bf5 15. Qc1 Rac8 16. Bh6 Rfd8 17. Bxg7 Kxg7 18. d5 Na5 19. Rd4 Qb6 {1-0 (27) Vajda,L (2558)-Krueger,A (2126) Hilversum 2015}) 14. Bf4 {[%emt 0:06:56]} Qd8 {[%emt 0:10:03]} (14... Bg4 $11) 15. Ne5 {[%emt 0:06:20]} (15. d5 $5 {[%cal Rd5c6]} Na5 16. Qb4 $11) 15... Na5 {[%emt 0:08:16]} 16. Qa4 {[%emt 0:05:12]} Rc8 {[%emt 0:11:19]} 17. g4 {[%emt 0:10:46]} Be6 {[%emt 0:10:10]} 18. d5 {[%emt 0:06:13]} Bxe5 {[%emt 0:05:06]} 19. Bxe5 {[%emt 0:00:27]} Bd7 {[%emt 0:00:01]} 20. Qf4 $36 {[%emt 0:03:39][%mdl 2048] White has the initiative.} Nac4 {[%emt 0:00:40]} 21. Bd4 {[%emt 0:02:57]} f6 {[%emt 0:03:21]} (21... Nxb2 $11 22. Rc1 Nbc4) 22. b3 $14 {[%emt 0:03:01]} (22. Bxa7 $6 g5 23. Qd4 Qa5 $11) 22... g5 {[%emt 0:00:29]} 23. Qg3 {[%emt 0:01:20]} (23. Qc1 $16 Nb6 24. Qe3) 23... Nb6 {[%emt 0:01:36]} (23... Na3 $1 $14) 24. h4 {[%emt 0:02:57]} gxh4 {[%emt 0:01:41]} 25. Qxh4 {[%emt 0:00:11]} Rf7 {[%emt 0:00:19]} 26. Rd3 {[%emt 0:02:36]} (26. Kh2 $16) 26... Rg7 {[%emt 0:01:11]} 27. Rg3 $1 {[%emt 0:00:37] Strongly threatening Bd3.} Rxc3 {[%emt 0:04:23]} 28. Bxc3 {[%emt 0:00:12] Hoping for Bf3.} Ne4 {[%emt 0:00:20]} 29. Rh3 {[%emt 0:03:47][%mdl 8192]} (29. Re3 $14 {keeps the upper hand.} Nxd5 {[#]} 30. Ba5 $1 {[%mdl 512]} (30. Rxe4 Nxc3 31. Bc4+ Kh8 $11) 30... Qxa5 31. Rxe4) 29... Nxd5 $19 {[%emt 0:00:30]} (29... Nxc3 30. Rxc3 Nxd5 31. Bc4 $16) 30. Ba1 {[%emt 0:02:14]} (30. Rc1 Nf4 31. Bc4+ Kh8 32. Rf3 (32. f3 $2 Nxh3+ 33. Kh2 Qc7+ 34. Kxh3 Qf4 $19) 32... Rxg4+ 33. Qxg4 Ne2+ 34. Bxe2 Bxg4 35. Re3 Bxe2 36. Rxe2) 30... Nf4 {[%emt 0:00:37][%csl LRe2,LRh3] Pair of Knights!} 31. Bc4+ {[%emt 0:00:55]} Kf8 {[%emt 0:02:16]} 32. f3 {[%emt 0:00:51]} Nxh3+ {[%emt 0:02:19]} 33. Qxh3 {[%emt 0:00:01]} Ng5 {[%emt 0:00:50]} 34. Qg3 {[%emt 0:00:55]} Qb6+ {[%emt 0:00:18]} 35. Kg2 {[%emt 0:01:11]} e5 {[%emt 0:00:22]} ({Black should try} 35... h5 $19 36. Rd1 (36. Qb8+ $2 Be8 $19) 36... e5 37. Bxe5 fxe5 38. Qxe5 Qc6 39. Qb8+ (39. Qf4+ $2 Nf7 $19) 39... Be8 40. Qf4+ Nf7) 36. Rd1 $2 {[%emt 0:00:54][%mdl 8192] Now White is beyond hope.} (36. Bxe5 $17 fxe5 37. Qxe5) 36... Bc6 {[%emt 0:00:29]} 37. Bd5 {[%emt 0:00:33]} (37. Kf1 Nxf3 38. Qf2) 37... Rd7 {[%emt 0:00:52]} 38. Qh4 {[%emt 0:01:56]} Rxd5 {[%emt 0:01:21]} 39. Qh6+ {[%emt 0:00:19]} Kf7 {[%emt 0:00:26] Black mates.} 40. Qh5+ {[%emt 0:00:00]} Kg7 {[%emt 0:00:00]} 41. Rxd5 {[%emt 0:19:10]} Bxd5 {[%emt 0:16:21]} 42. Bxe5 {[%emt 0:00:07]} Bxf3+ {[%emt 0:00:36]} 43. Kg3 {[%emt 0:00:46]} Qg1+ {[%emt 0:01:04]} 44. Kf4 {[%emt 0:00:09]} Qc1+ {[%emt 0:01:04]} 45. Kg3 {[%emt 0:01:37]} fxe5 {[%emt 0:00:30] Weighted Error Value: White=0.86/Black=0.21 (precise)} 0-1

[Event "FAI-ch Master 2022"]
[Site "Eidi"]
[Date "2022.04.14"]
[Round "6.1"]
[White "Nolsoe, Rani"]
[Black "Samuelsen, Carl Eli Nolsoe"]
[Result "1/2-1/2"]
[WhiteElo "2072"]
[BlackElo "2158"]
[Annotator "TA"]
[PlyCount "39"]
[EventDate "2022.04.10"]
[EventType "tourn"]
[EventCountry "FAI"]
[SourceTitle "playchess.com"]
[Source "ChessBase"]
[SourceQuality "1"]
[TimeControl "40/5400+30:1800+30"]

{[%evp 16,17,0,-10]} 1. e4 {[%emt 0:02:33]} c5 {[%emt 0:01:03]} 2. Nc3 {[%emt 0:00:40]} Nc6 {[%emt 0:00:08]} 3. g3 {[%emt 0:00:56]} g6 {[%emt 0:01:13]} 4. Bg2 {[%emt 0:00:17]} Bg7 {[%emt 0:00:32]} 5. Nge2 {[%emt 0:00:54]} e6 {[%emt 0:03:38]} 6. d3 {[%emt 0:00:14]} Nge7 {[%emt 0:00:46]} 7. Be3 {[%emt 0:00:57]} d6 {[%emt 0:00:18]} 8. O-O {[%emt 0:00:39]} O-O {[%emt 0:00:18]} 9. Qd2 {[%emt 0:00:22] [#]} {Predecessor:} Nd4 $146 {B26: Closed Sicilian: 3 g3, lines with early Be3.} 10. Rae1 Rb8 11. Nd1 Nxe2+ 12. Rxe2 b5 13. Bh6 b4 14. Bxg7 Kxg7 15. f4 a5 16. Ne3 f5 17. Nc4 fxe4 18. dxe4 Ba6 19. b3 Bxc4 20. bxc4 {0-1 (27) Jobava,B (2603)-Bilguun,S (2454) Chess.com INT 2020} 1/2-1/2

[Event "FAI-ch Master 2022"]
[Site "Eidi"]
[Date "2022.04.14"]
[Round "6.2"]
[White "Egilstoft, Rogvi"]
[Black "Nielsen, Torkil"]
[Result "1-0"]
[ECO "C28"]
[WhiteElo "2378"]
[BlackElo "2135"]
[Annotator "TA"]
[PlyCount "69"]
[EventDate "2022.04.10"]
[EventType "tourn"]
[EventCountry "FAI"]
[SourceTitle "playchess.com"]
[Source "ChessBase"]
[SourceQuality "1"]
[TimeControl "40/5400+30:1800+30"]

{[%evp 12,69,16,10,79,72,62,32,31,4,78,47,41,25,87,90,92,81,95,84,84,95,84,77,72,67,153,125,163,148,163,172,224,223,217,223,222,218,222,227,234,228,228,230,264,267,281,277,943,969,5870,5088,29960,6317,6317,7116,29991,29992,29993,29994]} 1. e4 {[%emt 0:00:04]} e5 {[%emt 0:00:08]} 2. Bc4 {[%emt 0:00:11]} Nc6 {[%emt 0:00:21]} 3. Nc3 {[%emt 0:01:10]} Nf6 {[%emt 0:00:13]} 4. d3 {[%emt 0:00:13]} Na5 {[%emt 0:00:25]} 5. Nge2 {[%emt 0:00:14]} Nxc4 {[%emt 0:00:41]} 6. dxc4 {[%emt 0:00:08]} Bb4 {[%emt 0:02:06]} 7. O-O {[%emt 0:01:50]} Bxc3 {[%emt 0:00:08] C28: Vienna Game: 2...Nf6 3 Bc4 Nc6.} (7... d6 $11) 8. Nxc3 $16 {[%emt 0:00:06]} d6 {[%emt 0:00:36]} 9. b3 {[%emt 0:01:52]} (9. f4 $5 {[%cal Rf4e5]}) 9... Be6 {[%emt 0:04:21] White is slightly better.} 10. Qd3 {[%emt 0:01:40]} Qd7 {[%emt 0:02:43] [#]} (10... Nd7 $11) 11. a4 $146 {[%emt 0:02:38]} (11. f4 $5 {[%cal Rf4f5]} Qc6 12. f5 $16) ({Predecessor:} 11. Be3 Ng4 12. Rad1 a6 13. f3 Nxe3 14. Qxe3 f6 15. c5 Qc6 16. cxd6 cxd6 17. Rf2 {1-0 (37) Desjardins,M (1920)-Beaudet,J (1757) Gatineau 2015}) 11... O-O {[%emt 0:02:37]} 12. h3 {[%emt 0:06:34]} Ne8 {[%emt 0:10:47]} (12... Qd8 $11 {keeps the balance.}) 13. f4 {[%emt 0:05:55]} exf4 {[%emt 0:02:30]} 14. Rxf4 {[%emt 0:00:33]} c6 {[%emt 0:06:07]} 15. Ba3 {[%emt 0:03:02]} Rd8 {[%emt 0:03:11]} 16. Rd1 {[%emt 0:02:02]} f6 {[%emt 0:02:26]} 17. Qg3 {[%emt 0:05:48]} Rf7 {[%emt 0:05:21]} 18. Rf3 {[%emt 0:15:25][%cal Oa3d6]} f5 {[%emt 0:03:47] [#] White stays focused until the end.} (18... Qc7 $14) 19. Bxd6 $1 {[%emt 0:06:19][%mdl 512] 0x0.001b374052dedp-1022s more active pieces. The black rooks are badly placed.} Nxd6 {[%emt 0:06:17]} (19... fxe4 20. Rxf7) 20. e5 {[%emt 0:03:52][%cal Be4e5,Be5d6][%mdl 32]} Qc7 {[%emt 0:04:16] Hoping for ...Ne4.} 21. exd6 {[%emt 0:02:17]} f4 {[%emt 0:07:26] [#]} (21... Qb6+ {was called for.} 22. Kh2 Bd7) 22. Qxg7+ $3 $18 {[%emt 0:02:55][%mdl 512]} Kxg7 {[%emt 0:04:21]} 23. dxc7 {[%emt 0:00:07]} Rxd1+ {[%emt 0:00:58]} 24. Nxd1 {[%emt 0:00:02]} Rxc7 {[%emt 0:00:53]} 25. Rxf4 {[%emt 0:00:14][%mdl 4096] Endgame KRB-KRN} Rd7 {[%emt 0:00:07]} 26. Ne3 {[%emt 0:01:07]} Rd2 {[%emt 0:00:50]} 27. Rf2 {[%emt 0:02:52]} Rxf2 {[%emt 0:02:20]} 28. Kxf2 {[%emt 0:00:06] KB-KN} Kf6 {[%emt 0:00:11]} 29. Ng4+ {[%emt 0:03:02]} Bxg4 $2 {[%emt 0:00:08]} (29... Kf5 30. Kf3 h5) 30. hxg4 {[%emt 0:00:05] KP-KP} c5 {[%emt 0:00:36]} 31. a5 {[%emt 0:01:51][%cal Ba4a5,Ba5a6][%mdl 32]} b6 {[%emt 0:00:23]} 32. a6 {[%emt 0:01:07] Intending Ke2 and mate.} Kg5 {[%emt 0:02:31]} 33. Kf3 {[%emt 0:00:22]} Kh4 {[%emt 0:01:37]} 34. Kf4 {[%emt 0:00:20]} h6 {[%emt 0:00:06]} 35. c3 {[%emt 0:00:13] Weighted Error Value: White=0.08 (flawless) /Black=0.78} 1-0

[Event "FAI-ch Master 2022"]
[Site "Eidi"]
[Date "2022.04.14"]
[Round "6.3"]
[White "Simonsen, Hans Kristian"]
[Black "Olsen, Wille"]
[Result "1-0"]
[ECO "A45"]
[WhiteElo "2166"]
[BlackElo "2006"]
[Annotator "TA"]
[PlyCount "38"]
[EventDate "2022.04.10"]
[EventType "tourn"]
[EventCountry "FAI"]
[SourceTitle "playchess.com"]
[Source "ChessBase"]
[SourceQuality "1"]
[TimeControl "40/5400+30:1800+30"]

{[%evp 9,38,0,0,-20,27,0,33,26,156,161,175,125,117,107,99,58,27,-151,-147,-143,331,307,670,679,1331,156,1331,1288,29997,29998,29998]} 1. d4 {[%emt 0:00:01]} Nf6 {[%emt 0:00:18]} 2. Bf4 {[%emt 0:00:09]} c6 {[%emt 0:05:48]} 3. Nc3 {[%emt 0:06:01]} Qb6 {[%emt 0:03:39] [#]} 4. Qd2 $146 {[%emt 0:01:17]} ({Predecessor:} 4. Rb1 d5 5. Nf3 Nbd7 6. e3 Nh5 7. Ng5 Nxf4 8. exf4 g6 9. Bd3 Bg7 10. Ne2 Bxd4 11. Nxd4 Qxd4 12. Qd2 Nc5 13. O-O Nxd3 14. cxd3 Bf5 15. Rbe1 e6 16. Re3 O-O {0-1 (16) Thieme,J-Wittig,D freechess.de 2015}) 4... Qxb2 {[%emt 0:05:25]} 5. Rb1 {[%emt 0:00:08]} Qa3 {[%emt 0:00:06]} 6. e4 {[%emt 0:02:18] A45: Trompowsky Attack.} d6 {[%emt 0:04:45]} (6... e6 {is more appropriate.}) 7. Nf3 {[%emt 0:04:37]} Nbd7 {[%emt 0:07:05][%cal Oe7e5]} 8. e5 {[%emt 0:04:52] White is slightly better.} Nd5 {[%emt 0:02:56]} (8... Nh5 $11) 9. Nxd5 $16 {[%emt 0:02:06]} cxd5 {[%emt 0:00:33]} 10. e6 {[%emt 0:02:01]} (10. c4 $18) 10... fxe6 {[%emt 0:02:06]} 11. Ng5 {[%emt 0:03:56]} e5 {[%emt 0:06:11]} 12. dxe5 {[%emt 0:00:12] &Bianco is more active.} Qxa2 {[%emt 0:03:38]} (12... dxe5 $2 13. Qxd5 $1 e6 14. Qxe6+ Qe7 15. Be3 $18) 13. Qb4 {[%emt 0:14:04]} (13. Qc1 $11 d4 14. e6) 13... dxe5 $17 {[%emt 0:04:25]} 14. Bb5 {[%emt 0:00:08][%cal Oe1g1]} exf4 $4 {[%emt 0:03:46][%mdl 8192]} (14... e6 $17 {keeps the pressure on.} 15. Bxd7+ Bxd7 16. Qxb7 Rc8) 15. Qxf4 $18 {[%emt 0:03:44] Threatening mate with Qf7+.} d4 $2 {[%emt 0:09:18] [#]} (15... Qxb1+ $2 16. Kd2 Qb4+ 17. Qxb4 $18) (15... Kd8) 16. Rb3 $1 {[%emt 0:03:04] White wants to mate with Qf7+.} Kd8 {[%emt 0:02:18] Strongly threatening ...e5.} 17. Ne6+ {[%emt 0:01:17]} Ke8 {[%emt 0:00:08] [#]} 18. O-O $1 {[%emt 0:04:13]} Qxc2 {[%emt 0:00:13]} 19. Rf3 {[%emt 0:00:29][%csl Gf3][%cal Rf4f7]} Qxf2+ {[%emt 0:01:40] Weighted Error Value: White=0.22 (precise) /Black=1.61} 1-0

[Event "FAI-ch Master 2022"]
[Site "Eidi"]
[Date "2022.04.14"]
[Round "6.4"]
[White "Nielsen, Hogni Egilstoft"]
[Black "Apol, Luitjen Akselsson"]
[Result "1/2-1/2"]
[ECO "E67"]
[WhiteElo "2405"]
[BlackElo "2154"]
[Annotator "TA"]
[PlyCount "60"]
[EventDate "2022.04.10"]
[EventType "tourn"]
[EventCountry "FAI"]
[SourceTitle "playchess.com"]
[Source "ChessBase"]
[SourceQuality "1"]
[TimeControl "40/5400+30:1800+30"]

{[%evp 20,60,39,0,13,0,0,-4,0,0,21,37,35,30,41,41,54,36,99,83,208,202,264,51,84,0,0,0,0,0,18,0,0,0,0,0,0,0,0,0,0,0,0]} 1. b3 {[%emt 0:00:11]} d6 {[%emt 0:00:48]} 2. Bb2 {[%emt 0:00:21]} Nd7 {[%emt 0:00:11]} 3. g3 {[%emt 0:00:55]} Ngf6 {[%emt 0:02:33]} 4. Bg2 {[%emt 0:00:20]} e5 {[%emt 0:01:06][%cal Be7e5,Be5e4][%mdl 32]} 5. e3 {[%emt 0:02:26]} g6 {[%emt 0:02:07]} 6. Ne2 {[%emt 0:02:59]} Bg7 {[%emt 0:00:25]} 7. d4 {[%emt 0:01:24]} O-O {[%emt 0:00:41]} 8. Nd2 {[%emt 0:00:27]} Re8 {[%emt 0:03:11]} 9. O-O {[%emt 0:03:33]} e4 {[%emt 0:05:24]} 10. c4 {[%emt 0:06:18]} Nf8 {[%emt 0:00:39]} 11. Nc3 {[%emt 0:08:36][%cal Rd2e4]} Bf5 $1 {[%emt 0:01:58] E67: King's Indian: Fianchetto: 6...Nbd7.} 12. h3 {[%emt 0:20:07]} h5 $1 {[%emt 0:01:15] Prevents g4.} 13. f3 {[%emt 0:03:03]} exf3 {[%emt 0:03:24]} 14. Qxf3 {[%emt 0:02:03]} N8h7 {[%emt 0:06:05]} (14... Ne6 $5 {[%cal Re6g5]}) 15. Qf4 {[%emt 0:02:42] Against Ng5} (15. Qxb7 Rb8 16. Qxa7 Rxe3 $15) 15... Qd7 {[%emt 0:13:31]} 16. Kh2 {[%emt 0:01:24] With the idea e4.} (16. Bxb7 Rab8 17. Bg2 Bxh3 18. Bxh3 Qxh3 $17) 16... h4 {[%emt 0:01:50]} 17. gxh4 {[%emt 0:03:29] [#]} (17. Bxb7 $2 Nh5 18. Qf3 (18. Qxh4 $2 Bf6 $19) 18... Ng5 $1 $19 {[%mdl 512]}) (17. Qxh4 $2 g5 18. Rxf5 gxh4 $19) 17... Bd3 $146 {[%emt 0:05:08]} ({Predecessor:} 17... Nh5 18. Qf2 Bh6 19. Rae1 c6 20. d5 Re7 21. Qf3 Rae8 22. Nd1 Bf4+ 23. Kg1 c5 {0-1 (34) Scafarelli,F-Penrose,J Copenhagen 1953}) 18. Rfe1 {[%emt 0:04:03]} c5 {[%emt 0:02:05]} (18... Nh5 $14 19. Qf2 c6) 19. Nce4 $16 {[%emt 0:07:09]} Nh5 {[%emt 0:22:07]} (19... Nxe4 $16 {was necessary.} 20. Nxe4 (20. Bxe4 Bxe4 21. Nxe4 Re6 $14) 20... Bxe4 21. Bxe4 Re7) 20. Qxd6 $18 {[%emt 0:08:18]} Qf5 {[%emt 0:00:08][%cal Rd3e4]} 21. Qd5 {[%emt 0:00:43]} (21. Nxc5 Bf6 $18) (21. Qxc5 $18 Rxe4 22. Nxe4 Bxe4 23. Qxf5 Bxf5 24. Bxb7) 21... cxd4 $14 {[%emt 0:04:20][%cal Bc5d4,Bd4e3,Be3d2][%mdl 32]} 22. Qxf5 {[%emt 0:05:29]} ({Inferior is} 22. exd4 Qf4+ 23. Kg1 Rad8 $19) (22. Qxb7 $2 dxe3 23. Bxg7 Kxg7 $19) (22. Bxd4 $16 {And now Qxf5 would win.} Bxd4 23. Qxd4) 22... gxf5 $11 {[%emt 0:00:02] The position is equal.} 23. Nc5 {[%emt 0:02:18]} dxe3 {[%emt 0:10:09]} 24. Bxg7 {[%emt 0:01:50]} Kxg7 {[%emt 0:01:02]} 25. Nxd3 {[%emt 0:06:12] aiming for Nf3.} exd2 {[%emt 0:00:18]} 26. Rxe8 {[%emt 0:00:31]} Rxe8 {[%emt 0:00:02]} 27. Rd1 $1 {[%emt 0:00:23]} (27. Bxb7 $2 Re2+ 28. Kg1 Re3 $19) 27... Re2 {[%emt 0:04:52] Threatens to win with ...N7f6.} 28. Kg1 {[%emt 0:00:06]} N7f6 {[%emt 0:01:28] White must now prevent ...Ne4.} 29. Bf1 {[%emt 0:01:11]} ({But not} 29. Bxb7 $2 Ne4 30. b4 {[#]} Nf4 $1 {[%mdl 512]} 31. Bxe4 fxe4 32. Nxf4 Re1+ 33. Kf2 Rxd1 $19) 29... Re3 {[%emt 0:00:17] Strongly threatening ...Ne4.} 30. Rxd2 {[%emt 0:00:02]} Ne4 {[%emt 0:00:09] Weighted Error Value: White=0.28 (precise) /Black=0.17 (very precise)} 1/2-1/2